[Event "Oceania Zonal Open 2023"]
[Site "Melbourne"]
[Date "2023.01.25"]
[Round "4.2"]
[White "Zhao, Zong-Yuan"]
[Black "Xie, Felix"]
[Result "1-0"]
[ECO "D31"]
[WhiteElo "2488"]
[BlackElo "2103"]
[Annotator "TA"]
[PlyCount "128"]
[EventDate "2023.01.09"]
[EventType "swiss"]
[EventCountry "AUS"]
[SourceTitle "playchess.com"]
[Source "ChessBase"]
[SourceQuality "1"]
[TimeControl "5400+30"]

{[%evp 13,128,9,24,20,27,13,22,29,12,0,29,34,38,26,51,24,56,51,91,87,76,4,6,14,64,62,68,43,46,46,47,35,49,42,40,49,56,42,89,79,90,94,93,57,156,149,170,109,110,104,126,135,204,201,185,189,202,190,397,345,341,304,12189,11749,4610,257,3440,2415,7681,5165,1970,1414,9914,4195,5200,4283,9663,8024,2351,1419,12847,6613,1405,2753,29965,29967,29967,29968,29967,29968,29971,29973,29976,29977,29974,29975,29975,29975,29975,29976,29976,29977,29977,29975,29975,29975,29975,29976,29976,29977,29977,29978,29978,29979,29977,29979,29993]} 1. d4 {[%emt 0:04:01]} d5 {[%emt 0:00:44]} 2. c4 {[%emt 0:00:04]} e6 {[%emt 0:00:14]} 3. Nc3 {[%emt 0:00:27]} Be7 {[%emt 0:00:08]} 4. cxd5 {[%emt 0:00:35]} exd5 {[%emt 0:00:06]} 5. Bf4 {[%emt 0:00:06]} c6 {[%emt 0:00:05]} 6. e3 {[%emt 0:00:15]} Bf5 {[%emt 0:00:05]} 7. Nge2 {[%emt 0:00:47]} Nf6 {[%emt 0:04:22]} 8. Ng3 {[%emt 0:00:26] D31: Queen's Gambit Declined: Semi-Slav without ...Nf6 (+ Marshall Gambit and Noteboom) and Exchange Variation lines without ...Nf6.} Bg6 {[%emt 0:04:40]} 9. h4 {[%emt 0:01:25] h5 is the strong threat.} h5 {[%emt 0:00:49]} 10. Bd3 {[%emt 0:01:39] The position is equal.} Bxd3 {[%emt 0:01:06]} 11. Qxd3 {[%emt 0:00:08]} g6 {[%emt 0:01:17]} 12. O-O-O {[%emt 0:00:25]} Nbd7 {[%emt 0:01:13]} 13. e4 {[%emt 0:22:28]} dxe4 {[%emt 0:19:48]} 14. Ngxe4 {[%emt 0:00:11]} O-O {[%emt 0:09:04]} 15. f3 {[%emt 0:09:25][%cal Og2g4,Bf2f3,Bf3f4,Bf4f5,Bf5g6][%mdl 32] [#]} Nd5 $146 ({Predecessor:} 15... Nxe4 16. fxe4 Nf6 17. Qf3 Ng4 18. Kb1 Bb4 19. g3 Bxc3 20. bxc3 Re8 21. Rhe1 Qa5 22. Bg5 Qb5+ 23. Ka1 Qc4 {½-½ Chytilek,R (2392)-Kotan,L (2289) Olomouc Inline Czechia Cup 2006 (10.4)}) 16. Nxd5 {[%emt 0:30:58]} cxd5 {[%emt 0:36:51] [#]} 17. Ng5 {[%emt 0:00:04]} (17. Nc3 $1 $16) 17... Nf6 {[%emt 0:01:27]} 18. Kb1 {[%emt 0:01:32]} Bd6 {[%emt 0:02:50]} (18... Qd7 $11) 19. Be5 $14 {[%emt 0:05:00][%cal Og5e6] Threatens to win with Ne6!} Re8 {[%emt 0:01:54] Prevents Ne6} 20. f4 {[%emt 0:02:29] And now f5 would win. White has more active pieces.} Ng4 {[%emt 0:02:02]} 21. f5 $1 {[%emt 0:06:10]} Bxe5 {[%emt 0:02:26]} 22. fxg6 $1 {[%emt 0:00:44]} f6 {[%emt 0:00:36]} 23. Nf7 {[%emt 0:01:13] The board is on fire.} Qd7 {[%emt 0:00:22]} (23... Nf2 $2 24. Qd2 Ng4 25. Nxd8 $18) 24. dxe5 {[%emt 0:01:19]} Nxe5 {[%emt 0:00:12]} 25. Qb3 {[%emt 0:03:31]} (25. Qxd5 {simplifies} Qxd5 26. Rxd5 Kg7 27. Nxe5 Rxe5 28. Rd7+) 25... Nxf7 {[%emt 0:03:28]} (25... Nxg6 $14 26. Nh6+ Kh8) 26. Rxd5 $1 $16 {[%emt 0:00:32]} ({Of course not} 26. gxf7+ Qxf7 27. Rxd5 (27. Qxd5 Re2 $11) 27... Rad8 28. Qg3+ (28. Rxh5 Qxb3 29. axb3 Rd2 $11) 28... Kh8 $11) 26... Qe6 {[%emt 0:00:08]} 27. gxf7+ {[%emt 0:01:01]} Qxf7 {[%emt 0:00:06]} 28. Rf1 {[%emt 0:00:48][%cal Of1f6]} ({Resist} 28. Rxh5 Qxb3 29. axb3 Re2 $14) 28... Kg7 {[%emt 0:01:15]} (28... Re5 $14 29. Qg3+ Qg7 30. Qxg7+ Kxg7 31. Rd7+ Kg6) 29. Rg5+ $1 $40 {[%emt 0:02:09][%mdl 192] Pin. White wants a kill.} Kf8 {[%emt 0:00:06][%cal Oe8e1]} 30. Qxf7+ {[%emt 0:04:22]} (30. Qa3+ $18 Re7 31. Rgf5 (31. Qd6 Ke8 $16)) 30... Kxf7 {[%emt 0:00:06]} 31. Rxh5 $18 {[%emt 0:00:04][%cal Bg5h5,Bh5h7,Bh7b7][%mdl 4128] Endgame KRR-KRR} Re2 {[%emt 0:03:46]} 32. Rh7+ {[%emt 0:01:08]} Kg6 {[%emt 0:00:05]} (32... Ke6 $16 33. Rg7 (33. Rxb7 Rxg2 34. Re1+ Kd6 $16) 33... f5) 33. Rxb7 {[%emt 0:00:03]} Rxg2 {[%emt 0:00:09] [#]} 34. h5+ $1 {[%emt 0:00:58][%mdl 576] Deflection} Kxh5 {[%emt 0:00:21]} 35. Rxf6 {[%emt 0:00:05]} a5 $2 {[%emt 0:01:52]} (35... Rg6 {is a better defense.} 36. Rxg6 Kxg6) 36. a4 {[%emt 0:01:16]} Kg5 {[%emt 0:01:48]} 37. Rff7 {[%emt 0:00:23]} Rg4 $2 {[%emt 0:01:33]} (37... Re2 38. Rb5+ Kg6) 38. Rg7+ {[%emt 0:00:41]} Kh4 {[%emt 0:00:18]} 39. b3 $2 {[%emt 0:00:30]} (39. Rxg4+ Kxg4 40. Rb5) 39... Ra6 $2 {[%emt 0:00:58]} (39... Rg5 40. Kb2 Kg4 41. Rxg5+ Kxg5) 40. Kb2 {[%emt 0:00:22] aiming for Rxg4+.} Kg3 {[%emt 0:00:48]} 41. Rxg4+ {[%emt 0:00:21]} Kxg4 {[%emt 0:00:03] KR-KR} 42. Rf7 {[%emt 0:00:52][%cal Ob3b4] Hoping for b4!} Re6 {[%emt 0:00:34]} 43. Kc3 {[%emt 0:00:28]} Rc6+ {[%emt 0:00:37]} 44. Kd4 {[%emt 0:00:15] Rg7+ would be deadly.} Rb6 {[%emt 0:00:06]} 45. Kc4 {[%emt 0:00:06]} Rb4+ {[%emt 0:00:08]} 46. Kc3 {[%emt 0:00:01] Threatening mate with Rg7+.} Rb6 {[%emt 0:00:11]} 47. Ra7 {[%emt 0:00:31]} Rc6+ {[%emt 0:00:04]} 48. Kd4 {[%emt 0:00:09]} Rb6 {[%emt 0:00:03]} 49. Rxa5 {[%emt 0:00:24] White mates.} Rxb3 {[%emt 0:00:05]} 50. Rb5 {[%emt 0:00:36]} Ra3 {[%emt 0:00:19]} 51. a5 {[%emt 0:00:04][%cal Ba4a5,Ba5a6][%mdl 32]} Kf4 {[%emt 0:00:41]} 52. Kc5 {[%emt 0:01:08]} Rh3 {[%emt 0:01:51]} 53. a6 {[%emt 0:00:10]} Rh5+ {[%emt 0:00:39]} 54. Kb6 {[%emt 0:00:15]} Rh6+ {[%emt 0:00:05]} 55. Ka5 {[%emt 0:00:07]} Rh7 {[%emt 0:00:17]} 56. Rc5 {[%emt 0:01:26]} Ke4 {[%emt 0:00:56]} 57. Kb6 {[%emt 0:00:10]} Kd4 {[%emt 0:00:10]} 58. Rc7 {[%emt 0:00:05]} Rh1 {[%emt 0:00:07]} 59. a7 {[%emt 0:00:08]} Rb1+ {[%emt 0:00:23]} 60. Kc6 {[%emt 0:00:21]} Ra1 {[%emt 0:00:17]} 61. Kb7 {[%emt 0:00:06]} Rb1+ {[%emt 0:00:13]} 62. Kc8 {[%emt 0:00:04]} Ra1 {[%emt 0:00:03]} 63. Kb8 {[%emt 0:00:03]} Rb1+ {[%emt 0:00:04]} 64. Rb7 {[%emt 0:00:03]} Kd5 {[%emt 0:00:08] Weighted Error Value: White=0.25 (precise) /Black=0.30} 1-0

[Event "Oceania Zonal Open 2023"]
[Site "Melbourne"]
[Date "2023.01.25"]
[Round "4.3"]
[White "Urban, Sylvester"]
[Black "Sardana, Rishi"]
[Result "0-1"]
[ECO "E33"]
[WhiteElo "2117"]
[BlackElo "2459"]
[Annotator "TA"]
[PlyCount "74"]
[EventDate "2023.01.09"]
[EventType "swiss"]
[EventCountry "AUS"]
[SourceTitle "playchess.com"]
[Source "ChessBase"]
[SourceQuality "1"]
[TimeControl "5400+30"]

{[%evp 14,74,25,14,17,19,31,0,0,16,7,0,0,-66,-59,-164,-109,-145,-119,-163,-141,-135,-129,-183,-181,-206,-127,-112,-120,-96,-74,-169,-148,-161,-113,-148,-66,-261,-230,-248,-271,-250,-250,-242,-96,-103,-105,-102,-108,-108,-116,-109,-115,-110,-117,-117,-109,-110,-104,-172,-150,-931,-916]} 1. d4 {[%emt 0:00:03]} Nf6 {[%emt 0:07:40]} 2. c4 {[%emt 0:00:04]} e6 {[%emt 0:00:08][%cal Be7e6,Be6e5][%mdl 32]} 3. Nc3 {[%emt 0:00:04]} Bb4 {[%emt 0:01:14]} 4. Qc2 {[%emt 0:00:05]} Nc6 {[%emt 0:03:22]} 5. Nf3 {[%emt 0:02:20]} d6 {[%emt 0:00:16]} 6. Bd2 {[%emt 0:00:34]} e5 {[%emt 0:01:32]} 7. d5 {[%emt 0:06:21]} Bxc3 {[%emt 0:00:07]} 8. Bxc3 {[%emt 0:00:17]} Ne7 {[%emt 0:00:07] E33: Nimzo-Indian: Classical: 4...Nc6.} 9. e4 {[%emt 0:05:41]} O-O {[%emt 0:03:53]} 10. O-O-O {[%emt 0:07:43] [#]} a5 $146 {[%emt 0:17:28] The position is equal.} ({Predecessor:} 10... Nd7 11. g4 Nc5 12. h3 Ng6 13. Be2 a6 14. Rdg1 b5 15. h4 Nf4 16. g5 f5 17. gxf6 Qxf6 {0-1 Kardoeus,D (2172)-Wachinger,N (2334) Bremen CD Meyer Memorial 2020 (5)}) 11. Ne1 {[%emt 0:08:59]} c6 {[%emt 0:18:25]} 12. dxc6 {[%emt 0:08:52]} Nxc6 {[%emt 0:00:06]} 13. a3 {[%emt 0:11:11] Against Nb4} (13. f3 $1 $11) 13... Qc7 $15 {[%emt 0:11:09]} 14. b3 {[%emt 0:12:34]} (14. Kb1 $15) 14... Be6 {[%emt 0:01:55]} ({Better is} 14... a4 $1 $19 {[%cal Ra4b3]} 15. b4 Be6) 15. a4 $17 {[%emt 0:04:18]} Nd7 {[%emt 0:00:54]} 16. Kb2 {[%emt 0:03:14]} Nc5 {[%emt 0:01:01]} 17. f3 {[%emt 0:04:36]} Ra6 {[%emt 0:13:05]} 18. Rb1 {[%emt 0:06:25]} (18. Ra1 $17) 18... Rb6 $1 $19 {[%emt 0:03:37][%csl LRa4,LRb3]} 19. Ka3 {[%emt 0:05:20]} Qe7 {[%emt 0:02:47][%cal Od6d5] Strongly threatening ...d5!} 20. Ka2 {[%emt 0:01:41]} Rc8 {[%emt 0:01:07]} 21. Qd2 {[%emt 0:01:38]} f5 {[%emt 0:02:01]} 22. exf5 {[%emt 0:00:48]} (22. Nd3 $17) 22... Bxf5 {[%emt 0:00:05]} 23. Bd3 {[%emt 0:00:35]} Be6 {[%emt 0:02:18]} (23... e4 $19 24. Bc2 Qf7) 24. Bc2 {[%emt 0:02:19]} Na6 {[%emt 0:04:22] A dynamic duo of knights.} (24... d5 $17 25. cxd5 (25. Bxa5 $2 Nxa5 26. Qxa5 Ra6 $19) 25... Rd8) 25. Be4 $2 {[%emt 0:03:33]} (25. Nd3 $15) 25... Ncb4+ {[%emt 0:00:33]} 26. Bxb4 {[%emt 0:00:25]} Nxb4+ {[%emt 0:00:31]} 27. Ka1 {[%emt 0:00:12] [#]} d5 $1 {[%emt 0:00:48][%mdl 512]} 28. cxd5 {[%emt 0:02:02] [#]} Nxd5 {[%emt 0:00:44]} 29. Bxd5 $17 {[%emt 0:01:05] Nc2 would be deadly.} Qa3+ {[%emt 0:00:07]} 30. Qa2 {[%emt 0:00:01]} Qxa2+ {[%emt 0:00:06]} 31. Kxa2 {[%emt 0:00:01] Bxe6+ is the strong threat.} Bxd5 {[%emt 0:00:02]} 32. Nd3 {[%emt 0:01:30]} Rc2+ {[%emt 0:01:40]} 33. Ka3 {[%emt 0:00:07]} Rc3 $36 {[%emt 0:00:49][%mdl 2048] Black has strong initiative.} 34. Nc1 {[%emt 0:00:11] [#]} Kf7 $1 {[%emt 0:00:27] Black has more active pieces.} 35. Re1 {[%emt 0:00:40]} Kf6 {[%emt 0:00:27]} 36. Rb2 {[%emt 0:00:49]} (36. Kb2 $17 Rbc6 37. Ka3) 36... g5 $19 {[%emt 0:00:44]} 37. Rbe2 $2 {[%emt 0:00:47] [#]} (37. h3 $17) 37... Rxc1 $1 {[%emt 0:01:25][%mdl 576] Remove Defender.   Weighted Error Value: White=0.54/Black=0.22 (precise)} 0-1

[Event "Oceania Zonal Open 2023"]
[Site "Melbourne"]
[Date "2023.01.25"]
[Round "4.4"]
[White "Lane, Gary W"]
[Black "Ilic, Nicholas"]
[Result "1-0"]
[ECO "B36"]
[WhiteElo "2343"]
[BlackElo "2066"]
[Annotator "TA"]
[PlyCount "89"]
[EventDate "2023.01.09"]
[EventType "swiss"]
[EventCountry "AUS"]
[SourceTitle "playchess.com"]
[Source "ChessBase"]
[SourceQuality "1"]
[TimeControl "5400+30"]

{[%evp 27,89,21,22,20,46,16,58,56,64,24,12,-27,17,10,25,0,0,9,61,0,0,-8,0,-31,0,0,153,0,220,213,325,330,281,289,719,703,826,827,816,758,2949,2920,2912,3174,3230,2434,12836,1550,29987,29988,29996,29977,29976,29977,29980,29977,29977,29978,29978,29979,29977,29975,5377,1676]} 1. e4 {[%emt 0:00:03]} c5 {[%emt 0:00:07]} 2. Nf3 {[%emt 0:00:18]} Nc6 {[%emt 0:00:05]} 3. d4 {[%emt 0:01:18]} cxd4 {[%emt 0:00:15]} 4. Nxd4 {[%emt 0:00:07]} g6 {[%emt 0:00:07]} 5. c4 {[%emt 0:00:16]} Nf6 {[%emt 0:00:08]} 6. Nc3 {[%emt 0:00:55]} d6 {[%emt 0:00:11]} 7. Be2 {[%emt 0:01:02]} Nxd4 {[%emt 0:00:12]} 8. Qxd4 {[%emt 0:00:36]} Bg7 {[%emt 0:00:06]} 9. Be3 {[%emt 0:00:53]} O-O {[%emt 0:00:11]} 10. Qd2 {[%emt 0:00:06]} Be6 {[%emt 0:01:34]} 11. Rc1 {[%emt 0:08:13]} Qa5 {[%emt 0:02:50]} 12. O-O {[%emt 0:01:33]} Rfc8 {[%emt 0:00:17]} 13. b3 {[%emt 0:01:40]} a6 {[%emt 0:00:10]} 14. f4 {[%emt 0:19:48][%cal Bf2f4,Bf4f5][%mdl 32]} b5 {[%emt 0:00:49][%cal Rb5c4]} 15. f5 {[%emt 0:02:15] B36: Sicilian: Maroczy Bind: Gurgenidze System.} Bd7 {[%emt 0:00:18] [#]} 16. Bf3 $146 {[%emt 0:10:23][%cal Oe4e5] e5! is the strong threat.} ({Predecessor:} 16. fxg6 hxg6 17. e5 b4 18. exf6 bxc3 19. Rxc3 Bxf6 20. Rd3 Qxd2 21. Rxd2 Bc6 22. Bd4 {½-½ Mousavi,S (2470)-Pourramezanali,A (2536) Shiraz Farvardin op 2018 (9)}) 16... b4 {[%emt 0:10:22]} (16... Rab8 {feels hotter.} 17. c5 b4 18. Nd5 Nxd5 19. Qxd5 Bc6) 17. Ne2 {[%emt 0:04:06][%cal Oe4e5] White is slightly better.} Bc6 {[%emt 0:01:23]} 18. Ng3 {[%emt 0:00:35]} Nd7 {[%emt 0:03:39]} 19. a4 {[%emt 0:06:33]} Rab8 {[%emt 0:03:34]} (19... Qe5 {seems wilder.} 20. fxg6 fxg6 21. Bg4 Nc5) 20. fxg6 {[%emt 0:10:23]} hxg6 {[%emt 0:03:46]} 21. Bg4 {[%emt 0:00:36][%cal Oc4c5]} Rc7 {[%emt 0:08:04]} 22. Qf2 {[%emt 0:03:36]} Nf6 {[%emt 0:20:09]} (22... Rf8 $11) 23. Bf3 {[%emt 0:00:54]} (23. Be2 $14) 23... Nd7 $1 $11 {[%emt 0:03:24]} 24. Bd1 {[%emt 0:02:59]} Rf8 {[%emt 0:14:45]} 25. Kh1 {[%emt 0:04:20]} Nc5 {[%emt 0:00:56]} 26. Bc2 {[%emt 0:00:39][%cal Oe4e5] Dodges Nd3. Hoping for e5!} Rcc8 $2 {[%emt 0:02:36] White leaves nothing to chance now.} ({Black should play} 26... Nd7 $11) 27. Rce1 $2 {[%emt 0:07:15]} ({White has to play} 27. e5 $1 $16 {[%cal Re5d6] exd6 would be deadly.} Qc7 28. exd6 exd6 29. Nf5 gxf5 30. Qxf5) 27... Ne6 $2 {[%emt 0:00:50] [#]} (27... Bb7 $11 {and Black is okay.}) 28. Nf5 $1 $18 {[%emt 0:05:13]} Bf6 {[%emt 0:02:12]} (28... gxf5 $2 29. exf5 Qe5 30. fxe6 $18) (28... Rce8 {was necessary.} 29. e5 Qxe5) 29. Nh6+ {[%emt 0:04:16]} ({Resist} 29. Nxd6 exd6 30. Qxf6 Qe5 $16) 29... Kh7 {[%emt 0:03:34]} 30. Ng4 {[%emt 0:00:05]} Bg7 {[%emt 0:09:45] [#]} (30... Qh5) 31. e5 $1 {[%emt 0:00:04][%mdl 512]} Qc7 {[%emt 0:00:50]} (31... Qd8 32. Qh4+) 32. Qh4+ {[%emt 0:01:16]} Kg8 {[%emt 0:00:04]} 33. Bh6 {[%emt 0:01:22] aiming for Bxg7.} dxe5 {[%emt 0:03:12]} 34. Bxg7 {[%emt 0:00:35]} Kxg7 {[%emt 0:00:08]} 35. Qh6+ {[%emt 0:00:04]} Kg8 {[%emt 0:00:11]} 36. Nxe5 {[%emt 0:02:52]} Ng7 {[%emt 0:00:24] [#]} 37. Nxf7 $1 {[%emt 0:00:56][%mdl 512]} Rxf7 {[%emt 0:02:02]} (37... Bxg2+ 38. Kxg2) 38. Rxf7 {[%emt 0:00:03]} Kxf7 {[%emt 0:02:01]} 39. Qxg6+ {[%emt 0:00:05]} Kg8 {[%emt 0:00:28]} 40. Qh7+ {[%emt 0:00:04]} Kf7 {[%emt 0:01:20]} 41. Rf1+ {[%emt 0:00:05]} Ke8 {[%emt 0:00:30]} 42. Qg8+ {[%emt 0:00:15]} Kd7 {[%emt 0:00:19]} 43. Rd1+ {[%emt 0:00:03]} Bd5 {[%emt 0:00:27]} 44. Qxd5+ {[%emt 0:00:16]} Qd6 {[%emt 0:00:13]} 45. Qb7+ {[%emt 0:00:06] An entertaining game by Lane.   Weighted Error Value: White=0.14 (very precise) /Black=0.52} (45. Qf7 $142 Rc6 46. Rxd6+ Rxd6 47. Qxg7) 1-0

[Event "Oceania Zonal Open 2023"]
[Site "Melbourne"]
[Date "2023.01.25"]
[Round "4.5"]
[White "Clarke, Matthew"]
[Black "Liu, Yi"]
[Result "0-1"]
[ECO "E71"]
[WhiteElo "2104"]
[BlackElo "2303"]
[Annotator "TA"]
[PlyCount "162"]
[EventDate "2023.01.09"]
[EventType "swiss"]
[EventCountry "AUS"]
[SourceTitle "playchess.com"]
[Source "ChessBase"]
[SourceQuality "1"]
[TimeControl "5400+30"]

{[%evp 12,162,27,31,57,66,64,63,63,38,58,66,63,82,129,22,22,0,22,14,37,34,37,40,52,52,47,-20,38,2,67,46,70,46,58,22,48,0,41,0,56,56,61,56,76,0,88,67,92,54,61,56,61,27,68,51,55,14,18,0,0,0,29,0,47,31,77,31,52,52,45,45,47,43,45,0,54,50,75,26,29,0,41,46,54,50,100,129,104,59,143,159,141,7,0,34,30,35,126,108,215,230,260,261,345,356,355,270,287,253,256,250,247,248,317,262,281,232,376,391,431,410,388,317,473,411,518,480,552,503,465,-70,-62,-68,-155,-238,-287,-422,-401,-521,-518,-679,-673,-1050,-670,-627,-697,-1520,-527,-1533,-1269,-6528,-5872]} 1. d4 {[%emt 0:02:32]} Nf6 {[%emt 0:03:48]} 2. c4 {[%emt 0:00:00]} g6 {[%emt 0:00:16]} 3. Nc3 {[%emt 0:00:00]} Bg7 {[%emt 0:00:06]} 4. e4 {[%emt 0:00:00]} O-O {[%emt 0:00:08]} 5. h3 {[%emt 0:01:38]} d6 {[%emt 0:04:52]} 6. Be3 {[%emt 0:00:48]} e5 {[%emt 0:03:27]} 7. d5 {[%emt 0:01:25]} Nfd7 {[%emt 0:02:48] E71: King's Indian: 4 e4 d6 5 h3.} 8. g4 {[%emt 0:03:19]} a5 {[%emt 0:00:14]} 9. Nge2 {[%emt 0:01:40]} Na6 {[%emt 0:01:33] White is slightly better.} 10. Qd2 {[%emt 0:02:14]} Ndc5 {[%emt 0:01:32]} 11. Ng3 {[%emt 0:00:44]} Bd7 {[%emt 0:01:08]} 12. Be2 {[%emt 0:03:19] [#]} Bf6 $146 {[%emt 0:08:59] Prevents h4} (12... c6 $142) ({Predecessor:} 12... Qc8 13. f3 f5 14. gxf5 gxf5 15. Nh5 f4 16. Rg1 Rf7 17. Bxf4 exf4 18. Qd4 Qf8 {1-0 Rakhmanov,A (2640)-Bifulco,M (2338) Titled Tuesday intern op 21st Dec blitz 2021 (1)}) 13. O-O-O {[%emt 0:07:22]} (13. h4 $16) 13... Bh4 $11 {[%emt 0:02:12]} 14. Rdg1 {[%emt 0:04:27]} Kh8 {[%emt 0:01:30]} 15. Kb1 {[%emt 0:07:31]} (15. g5 {keeps more tension.} c6 16. Kb1 b5 17. dxc6 b4 18. Qxd6 bxc3 19. cxd7 Qb8 20. Qxb8 Raxb8 21. b3) 15... Qe7 {[%emt 0:03:17]} 16. g5 {[%emt 0:07:56]} f6 {[%emt 0:06:56]} 17. gxf6 {[%emt 0:01:49]} Rxf6 {[%emt 0:02:23]} 18. f3 {[%emt 0:07:40]} Raf8 {[%emt 0:05:20]} 19. Rh2 {[%emt 0:04:19]} (19. Bh6 $14) 19... a4 {[%emt 0:03:27]} (19... Rxf3 $11 20. Bxf3 Rxf3) 20. Nh1 {[%emt 0:04:59]} Be8 {[%emt 0:06:36]} (20... Qf7 $11) 21. Nf2 {[%emt 0:02:04]} h5 {[%emt 0:09:17]} 22. Bd1 {[%emt 0:10:29]} Kh7 {[%emt 0:04:32]} 23. Rgg2 {[%emt 0:05:03]} Bd7 {[%emt 0:09:32]} 24. Bh6 {[%emt 0:05:01]} (24. Rh1 $14) 24... R8f7 {[%emt 0:06:08] Active counter play!} 25. Be3 {[%emt 0:04:30]} Kg8 {[%emt 0:01:49]} (25... Rf8 $1 $11) 26. Rh1 $14 {[%emt 0:00:53]} Rg7 {[%emt 0:05:40]} 27. Bh6 {[%emt 0:02:49]} Rh7 {[%emt 0:00:50]} 28. Be3 {[%emt 0:01:03]} (28. Rhg1 $16) 28... Qf7 {[%emt 0:01:56]} (28... Rg7 $1 $11 {keeps the balance.}) 29. Rhh2 {[%emt 0:02:35]} Kf8 {[%emt 0:00:15]} 30. Ka1 {[%emt 0:00:52]} (30. Rg1 {simplifies} b6 31. Nd3 Nxd3 32. Qxd3 Nc5 33. Qd2) 30... Ke7 {[%emt 0:00:41]} 31. Be2 {[%emt 0:03:40]} Rh8 {[%emt 0:00:43]} 32. Nfd1 {[%emt 0:01:38]} Rg8 {[%emt 0:01:37]} 33. Rh1 {[%emt 0:01:00]} Kd8 {[%emt 0:00:13]} 34. Bg5 {[%emt 0:01:09]} Bxg5 {[%emt 0:00:04]} 35. Rxg5 {[%emt 0:00:15]} Rf4 {[%emt 0:00:33]} 36. Nf2 {[%emt 0:00:43]} Rh4 {[%emt 0:02:42]} 37. Ncd1 {[%emt 0:00:25]} b6 {[%emt 0:01:03]} (37... a3 $11) 38. Rhg1 {[%emt 0:00:35]} (38. Ne3 $5 {[%cal Re3g2]}) 38... Rf4 {[%emt 0:00:42]} (38... Kc8 $14 {is superior.}) 39. Ne3 {[%emt 0:00:32]} ({Better is} 39. Qc3 $16) 39... Kc8 {[%emt 0:00:33]} 40. Ng2 {[%emt 0:00:24]} Rf6 {[%emt 0:00:01][%cal Oa4a3]} 41. Nh4 {[%emt 0:00:20]} Kb7 {[%emt 0:00:32]} 42. R1g3 {[%emt 0:00:42]} Be8 {[%emt 0:00:50]} 43. Rg1 {[%emt 0:00:18]} Qh7 {[%emt 0:00:24]} (43... Bd7 $11) 44. Kb1 {[%emt 0:00:52]} Nb8 {[%emt 0:00:43][%cal Ba6b8,Bb8d7,Bd7f8,Bf8h7][%mdl 32]} 45. Kc1 {[%emt 0:00:15]} (45. Bd1 $16) 45... Nbd7 {[%emt 0:00:17]} 46. Kd1 {[%emt 0:00:16]} Rg7 {[%emt 0:00:38]} 47. Ke1 {[%emt 0:00:39]} Nf8 {[%emt 0:00:10]} 48. Bd1 {[%emt 0:00:55]} Bd7 {[%emt 0:00:31]} (48... c6 $14) 49. b4 $16 {[%emt 0:00:26]} axb3 {[%emt 0:00:02]} 50. axb3 {[%emt 0:00:09][%cal Ba2b3,Bb3b4][%mdl 32]} Qg8 {[%emt 0:01:11]} (50... Qh6 $14) 51. b4 {[%emt 0:00:20]} Na6 {[%emt 0:00:08]} 52. Ng2 {[%emt 0:01:08]} (52. Be2 $16) 52... Nh7 $11 {[%emt 0:00:08]} 53. Rg3 {[%emt 0:00:08]} g5 {[%emt 0:00:41]} 54. Ne3 {[%emt 0:00:18]} (54. Nd3 {is interesting.} Qf8 55. b5 Nc5 56. Nxc5+ bxc5 57. Qa5) 54... Qa8 {[%emt 0:01:16]} ({Black should play} 54... Qf8 $14) 55. Be2 $16 {[%emt 0:00:46] And now Qb2 would win.} Nb8 {[%emt 0:00:33]} (55... Qf8 $16) 56. Qb2 $18 {[%emt 0:00:30]} Kc8 {[%emt 0:00:24]} 57. Kd2 {[%emt 0:00:14]} Rgf7 {[%emt 0:00:31]} 58. Ra1 {[%emt 0:00:31]} Qb7 {[%emt 0:00:01]} 59. Qa3 {[%emt 0:00:46]} h4 {[%emt 0:00:47]} 60. Rgg1 {[%emt 0:00:15] Threatens to win with c5.} Rxf3 {[%emt 0:00:06]} 61. Bxf3 {[%emt 0:00:15]} Rxf3 {[%emt 0:00:01]} 62. Ke2 {[%emt 0:00:31]} Rf4 {[%emt 0:00:50]} 63. Ng2 {[%emt 0:00:50][%cal Be3g2,Bg2e1,Be1d3][%mdl 32]} Rf8 {[%emt 0:00:44]} 64. Ne1 {[%emt 0:00:31]} b5 {[%emt 0:00:34]} (64... Be8 $142 65. Ned3 Bh5+ 66. Kd2 g4) 65. c5 {[%emt 0:00:34]} dxc5 {[%emt 0:00:02]} 66. bxc5 {[%emt 0:00:10]} b4 {[%emt 0:00:02]} 67. Qe3 {[%emt 0:00:36] Ned3 would be deadly.} c6 {[%emt 0:00:43]} (67... Bb5+ {keeps fighting.} 68. Ned3 c6) 68. d6 {[%emt 0:00:29]} Be6 {[%emt 0:00:14]} 69. Ned3 {[%emt 0:00:24]} Bc4 {[%emt 0:01:00][%cal Be6c4,Bc4d3,Bd3c2][%mdl 32]} 70. Rgb1 {[%emt 0:00:38]} b3 {[%emt 0:00:41]} 71. Qc1 $2 {[%emt 0:00:56] [#]} (71. Kd2 $18) 71... Rxf2+ $1 $15 {[%emt 0:00:46][%mdl 64] Remove Defender, Deflection} 72. Kxf2 {[%emt 0:00:09]} Bxd3 {[%emt 0:00:01]} 73. Rb2 {[%emt 0:00:33] [#]} (73. Qa3 $17 Qf7+ 74. Kg1) 73... Qb4 $1 $19 {[%emt 0:01:22]} (73... Bxe4 74. Qe3 Qf7+ 75. Kg1 $11) 74. Qe3 {[%emt 0:00:20]} (74. Ra7 $142 Nf6 75. Rc7+ Kd8 76. Qxg5 Qd4+ 77. Ke1 Qxe4+ 78. Kd2 Qb4+ 79. Kd1 Bc2+ 80. Ke2 Qe4+ 81. Kf2 Qf4+ 82. Qxf4 exf4 83. Ra7) 74... Bc2 {[%emt 0:00:36]} (74... Qxe4 75. Rxb3 Nf6 76. Rxd3 $18) (74... Qc3 $2 75. Rab1 Qc4 76. Ra1 $19) 75. Kg2 {[%emt 0:01:04]} ({Of course not} 75. Ra7 Nf6 76. Rc7+ (76. Qxg5 Nxe4+ 77. Ke2 Nxg5 78. Rc7+ Kd8) 76... Kd8 77. Qxg5 Qxc5+ 78. Kg2 Qxd6 $19) 75... Nf6 {[%emt 0:00:22] Black is clearly winning.} ({Less strong is} 75... Bxe4+ 76. Kg1 Nf8 77. Rxb3 $16 (77. Qxb3 Qxb3 78. Rxb3 Bd5 $18)) 76. Rf1 {[%emt 0:00:37]} Nbd7 {[%emt 0:00:36]} ({Not} 76... Nxe4 77. Rf8+ Kd7 78. Rf7+ Kc8 79. Rf8+ Kd7 80. Rf7+ Kc8 81. Rf8+ $17) (76... Bxe4+ 77. Kh2 Nbd7 78. Rxb3 Qxc5 79. Qxc5 Nxc5 80. Ra3 $17) 77. Qxg5 {[%emt 0:00:23]} Qxe4+ {[%emt 0:00:09]} 78. Kh2 {[%emt 0:00:12]} Qe2+ {[%emt 0:00:58]} 79. Qg2 {[%emt 0:00:08]} Qxg2+ {[%emt 0:00:10]} 80. Kxg2 {[%emt 0:00:07]} Nd5 {[%emt 0:00:19] White must now prevent ...Ne3+.} 81. Kf3 {[%emt 0:01:37] Wards off Ne3} e4+ {[%emt 0:00:17] Weighted Error Value: White=0.24 (precise) /Black=0.27 (precise)} 0-1